{"text_format":"1","workbook":"xlsx","n_sheets":7,"sheets":["取扱説明書","ひな形","(参考)監理指針_コンクリート工事","(参考)一般的なフローチャート","(参考)施工計画書_山留工事(SMW工法)","(参考)ボーリング","ShapeMapping"],"not_rendered":{"charts":0,"images":1,"macros":1,"external_links":1,"defined_names":0,"comments":0,"pivot_tables":0},"unopened":[],"bounds":{"document_bytes":16777216,"sheet_cells":100000,"rows_first":2000,"rows_last":500,"rows_between":2000,"halvings":0,"cell_chars":16384,"cell_head_chars":4096},"cells_cut":0,"cells_raw":0,"read":"whole","date_system":"1900"}

{"sheet":"取扱説明書","index":0,"n_rows":107,"n_cols":74,"rows_kept":107,"cut":false,"hidden":false,"merged":[]}
[null,1,{"$f":"B1+1","v":2},{"$f":"C1+1","v":3},4,5,6,7,8,9,10,11,12,13,14,15,16,17,18,19,20,21,22,23,24,null,{"$f":"Y5+1","v":73},{"$f":"AA1+1","v":74},75,76,77,78,79,80,81,82,83,84,85,86,87,88,89,90,91,92,93,94,95,96,null,{"$f":"AX5+1","v":145},{"$f":"AZ1+1","v":146},147,148,149,150,151,152,153,154,155,156,157,158,159,160,161,162,163,164,165,166,167]
[]
[null,{"$f":"Y1+1","v":25},{"$f":"B3+1","v":26},{"$f":"C3+1","v":27},28,29,30,31,32,33,34,35,36,37,38,39,40,41,42,43,44,45,46,47,48,null,{"$f":"AX1+1","v":97},{"$f":"AA3+1","v":98},99,100,101,102,103,104,105,106,107,108,109,110,111,112,113,114,115,116,117,118,119,120,null,{"$f":"BV1+1","v":168},{"$f":"AZ3+1","v":169},170,171,172,173,174,175,176,177,178,179,180,181,182,183,184,185,186,187,188,189,190]
[]
[null,{"$f":"Y3+1","v":49},{"$f":"B5+1","v":50},{"$f":"C5+1","v":51},52,53,54,55,56,57,58,59,60,61,62,63,64,65,66,67,68,69,70,71,72,null,{"$f":"AX3+1","v":121},{"$f":"AA5+1","v":122},123,124,125,126,127,128,129,130,131,132,133,134,135,136,137,138,139,140,141,142,143,144,null,191,null,{"$f":"AZ5+1","v":192},null,{"$f":"BB5+1","v":193},null,{"$f":"BD5+1","v":194},null,{"$f":"BF5+1","v":195},null,{"$f":"BH5+1","v":196},null,{"$f":"BJ5+1","v":197},null,{"$f":"BL5+1","v":198},null,{"$f":"BN5+1","v":199},null,{"$f":"BP5+1","v":200},null,"Y","N","D"]
[null,null,null,null,null,null,null,null,null,null,null,null,null,null,null,null,null,null,null,null,null,null,null,null,null,null,null,null,null,null,null,null,null,null,null,null,null,null,null,null,null,null,null,"欠番"]
[null,"フローチャート作成支援 - ©2002-2025 http://www.mansikka.info -",null,null,null,null,null,null,null,null,null,null,null,null,null,null,null,null,null,null,null,null,null,null,null,null,null,null,null,null,null,null,null,null,null,null,null,null,null,null,null,null,null,null,null,null,null,null,null,null,null,null,null,null,null,null,null,null,null,null,null,null,null,null,null,null,null,null,null,null,null,null,null,"エクセル方眼紙設定、標準：行高＝18、行幅＝2.38"]
[null,"図形挿入文字欄"]
[1,"準備",null,null,null,null,null,null,null," ",null,"練習用スペース",null,null,null,null,null,null,null,null,null,null,null,null,null,null,null,null,null,null,null,null,null,null,null,null,null,null,null,null,null,"エクセルのマクロを用いたフローチャート作成支援のワークシートです。"]
[2,"設計図書の確認",null,null,null,null,null,null,null," ",null,null,null,null,null,null,null,null,null,null,null,null,null,null,null,null,null,null,null,null,null,null,null,null,null,null,null,null,null,null,null,"1.概要"]
[3,"工程表の作成",null,null,null,null,null,null,null," ",null,null,null,null,null,null,null,null,null,null,null,null,null,null,null,null,null,null,null,null,null,null,null,null,null,null,null,null,null,null,null,null,"(1)#1-#203の下段にある図形やボタンを用いて全ての業界・業種のフローチャートの作成支援をします。"]
[4,"施工計画書の作成",null,null,null,null,null,null,null," ",null,null,null,null,null,null,null,null,null,null,null,null,null,null,null,null,null,null,null,null,null,null,null,null,null,null,null,null,null,null,null,null,"(2)大別して、次の2つの作成支援を行います。"]
[5,null,null,null,null,null,null,null,null," ",null,null,null,null,null,null,null,null,null,null,null,null,null,null,null,null,null,null,null,null,null,null,null,null,null,null,null,null,null,null,null,null,null,"ア.自動で作成する"]
[6,null,null,null,null,null,null,null,null," ",null,null,null,null,null,null,null,null,null,null,null,null,null,null,null,null,null,null,null,null,null,null,null,null,null,null,null,null,null,null,null,null,null,"イ.一つひとつ作成する。"]
[7,null,null,null,null,null,null,null,null," ",null,null,null,null,null,null,null,null,null,null,null,null,null,null,null,null,null,null,null,null,null,null,null,null,null,null,null,null,null,null,null,null,"(3)Excel2016で作成、動作確認しています。マクロの一部、または全部が動かない場合があります。ご了承ください。"]
[8,null,null,null,null,null,null,null,null," ",null,null,null,null,null,null,null,null,null,null,null,null,null,null,null,null,null,null,null,null,null,null,null,null,null,null,null,null,null,null,null,"2.使い方"]
[9,null,null,null,null,null,null,null,null," ",null,null,null,null,null,null,null,null,null,null,null,null,null,null,null,null,null,null,null,null,null,null,null,null,null,null,null,null,null,null,null,null,"(1)自動で作成する方法"]
[10,"73 準備",null,null,null,null,null,null,null," ",null,null,null,null,null,null,null,null,null,null,null,null,null,null,null,null,null,null,null,null,null,null,null,null,null,null,null,null,null,null,null,null,null,"操作手順は、「何を(文字列)」→「何したい？(動作ボタン)」→「どこに(セル番地)」になります。"]
[11,"74 設計図書の確認",null,null,null,null,null,null,null," ",null,null,null,null,null,null,null,null,null,null,null,null,null,null,null,null,null,null,null,null,null,null,null,null,null,null,null,null,null,null,null,null,null,"ア.左側の図形挿入文字欄の文字列のB列を数行ドラッグします。"]
[12,"75 工程表の作成",null,null,null,null,null,null,null," ",null,null,null,null,null,null,null,null,null,null,null,null,null,null,null,null,null,null,null,null,null,null,null,null,null,null,null,null,null,null,null,null,null,"イ.上の段の#191「自動1」をクリックします。"]
[13,"76 施工計画書の作成",null,null,null,null,null,null,null," ",null,null,null,null,null,null,null,null,null,null,null,null,null,null,null,null,null,null,null,null,null,null,null,null,null,null,null,null,null,null,null,null,null,"ウ.メッセージが現れるので練習用スペースの赤い四角(セル番地M11)をマウスでクリックします。"]
[14,null,null,null,null,null,null,null,null," ",null,null,null,null,null,null,null,null,null,null,null,null,null,null,null,null,null,null,null,null,null,null,null,null,null,null,null,null,null,null,null,null,null,"エ.フローチャート図が自動生成されます。"]
[15,null,null,null,null,null,null,null,null," ",null,null,null,null,null,null,null,null,null,null,null,null,null,null,null,null,null,null,null,null,null,null,null,null,null,null,null,null,null,null,null,null,null,"オ.自動生成したフローチャートは位置を移動したり、後述(2)の手順で他の図形を加除して求める姿に修正します。"]
[16,null,null,null,null,null,null,null,null," ",null,null,null,null,null,null,null,null,null,null,null,null,null,null,null,null,null,null,null,null,null,null,null,null,null,null,null,null,null,null,null,null,"(2)一つひとつ作成する方法"]
[17,null,null,null,null,null,null,null,null," ",null,null,null,null,null,null,null,null,null,null,null,null,null,null,null,null,null,null,null,null,null,null,null,null,null,null,null,null,null,null,null,null,null,"貼り付ける場所をクリックしてから、図形を選択すると貼り付きます。文字列を挿入します。"]
[18,null,null,null,null,null,null,null,null," ",null,null,null,null,null,null,null,null,null,null,null,null,null,null,null,null,null,null,null,null,null,null,null,null,null,null,null,null,null,null,null,null,null,"ア.既に文字が入力済みですが、画面左側の図形挿入文字欄のB列にフローチャートに必要な文字列を入力します。"]
[19,null,null,null,null,null,null,null,null," ",null,null,null,null,null,null,null,null,null,null,null,null,null,null,null,null,null,null,null,null,null,null,null,null,null,null,null,null,null,null,null,null,null,"イ.図形を貼り付けたい場所(練習用スペースの水色の四角(セル番地Z10)をクリックします。"]
[20,null,null,null,null,null,null,null,null," ",null,null,null,null,null,null,null,null,null,null,null,null,null,null,null,null,null,null,null,null,null,null,null,null,null,null,null,null,null,null,null,null,null,"ウ.#1-#196までの図形をクリックすると、イ.で指定した場所に横4マス×縦2マス(固定)の図形が貼り付きます。"]
[21,null,null,null,null,null,null,null,null," ",null,null,null,null,null,null,null,null,null,null,null,null,null,null,null,null,null,null,null,null,null,null,null,null,null,null,null,null,null,null,null,null,null,"エ.図形への文字挿入は次の手順で挿入します。"]
[22,null,null,null,null,null,null,null,null," ",null,null,null,null,null,null,null,null,null,null,null,null,null,null,null,null,null,null,null,null,null,null,null,null,null,null,null,null,null,null,null,null,null,null,"(ア)文字欄のB列から図形挿入したい文字をクリックする。"]
[23,null,null,null,null,null,null,null,null," ",null,null,null,null,null,null,null,null,null,null,null,null,null,null,null,null,null,null,null,null,null,null,null,null,null,null,null,null,null,null,null,null,null,null,"(イ)前述のウ.で生成した図形をクリックする。"]
[24,null,null,null,null,null,null,null,null," ",null,null,null,null,null,null,null,null,null,null,null,null,null,null,null,null,null,null,null,null,null,null,null,null,null,null,null,null,null,null,null,null,null,null,"(ウ)#193「挿入A」をクリックする。"]
[25,null,null,null,null,null,null,null,null," ",null,null,null,null,null,null,null,null,null,null,null,null,null,null,null,null,null,null,null,null,null,null,null,null,null,null,null,null,null,null,null,null,null,null,"(エ)フローチャートの図形内に指定された文字列が挿入されます。"]
[26,null,null,null,null,null,null,null,null," ",null,null,null,null,null,null,null,null,null,null,null,null,null,null,null,null,null,null,null,null,null,null,null,null,null,null,null,null,null,null,null,null,null,"オ.以上のア.からエ.の操作を繰り返してフローチャートを作成します。"]
[27,null,null,null,null,null,null,null,null," ",null,null,null,null,null,null,null,null,null,null,null,null,null,null,null,null,null,null,null,null,null,null,null,null,null,null,null,null,null,null,null,"3.その他"]
[28,null,null,null,null,null,null,null,null," ",null,null,null,null,null,null,null,null,null,null,null,null,null,null,null,null,null,null,null,null,null,null,null,null,null,null,null,null,null,null,null,null,"(1)#191「自動1」の操作は 「2.使い方、(1)自動で作成する方法」の通りです。"]
[29,null,null,null,null,null,null,null,null," ",null,null,null,null,null,null,null,null,null,null,null,null,null,null,null,null,null,null,null,null,null,null,null,null,null,null,null,null,null,null,null,null,"(2)#192「自動2」は、#191「自動1」がセルの縦1マスに対して縦2マスで作成します。"]
[30,null,null,null,null,null,null,null,null," ",null,null,null,null,null,null,null,null,null,null,null,null,null,null,null,null,null,null,null,null,null,null,null,null,null,null,null,null,null,null,null,null,"(3)#193「挿入A」の使い方は、「2.使い方、(1)自動で作成する方法」の通りです。"]
[31,null,null,null,null,null,null,null,null," ",null,null,null,null,null,null,null,null,null,null,null,null,null,null,null,null,null,null,null,null,null,null,null,null,null,null,null,null,null,null,null,null,"(4)#194「挿入B」は、関数式を挿入する場合に用います。図形挿入文字欄の関数式のリンク先が変化するとフローチャート内の"]
[32,null,null,null,null,null,null,null,null," ",null,null,null,null,null,null,null,null,null,null,null,null,null,null,null,null,null,null,null,null,null,null,null,null,null,null,null,null,null,null,null,null,"　　文字列が変化します。例えば、セル番地B13に「=B10」と入力すると、セルに表示する文字列は「設計図書の確認」が表示"]
[33,null,null,null,null,null,null,null,null," ",null,null,null,null,null,null,null,null,null,null,null,null,null,null,null,null,null,null,null,null,null,null,null,null,null,null,null,null,null,null,null,null,"　　します。#193「挿入A」、#194「挿入B」ともに 「2.使い方、(2)一つひとつ作成する方法」 の手順を踏むと見た目は同じ"]
[34,null,null,null,null,null,null,null,null," ",null,null,null,null,null,null,null,null,null,null,null,null,null,null,null,null,null,null,null,null,null,null,null,null,null,null,null,null,null,null,null,null,"　　表示になりますが、セル番地B14の数式=B10の元の文字列「設計図書の確認」を他の文字列に変えると　「挿入B」で生成"]
[35,null,null,null,null,null,null,null,null," ",null,null,null,null,null,null,null,null,null,null,null,null,null,null,null,null,null,null,null,null,null,null,null,null,null,null,null,null,null,null,null,null,"　　した図形内の文字が変化します。"]
[36,null,null,null,null,null,null,null,null," ",null,null,null,null,null,null,null,null,null,null,null,null,null,null,null,null,null,null,null,null,null,null,null,null,null,null,null,null,null,null,null,null,"(5)#195「範囲」は、生成したフローチャートを移動・複写・図形の再設定等を行いたい場合にマウスで範囲指定します。"]
[37,null,null,null,null,null,null,null,null," ",null,null,null,null,null,null,null,null,null,null,null,null,null,null,null,null,null,null,null,null,null,null,null,null,null,null,null,null,null,null,null,null,"　　例えば、矢印の形状を変えたい、フォントを変えたい、色を変えたい、その他の使い方をする時に範囲指定します。"]
[38,null,null,null,null,null,null,null,null," ",null,null,null,null,null,null,null,null,null,null,null,null,null,null,null,null,null,null,null,null,null,null,null,null,null,null,null,null,null,null,null,null,"(6)#196「削除」は、(5)の範囲指定した図形と文字列を削除します。セル内の式や文字列は削除しません。"]
[39,null,null,null,null,null,null,null,null," ",null,null,null,null,null,null,null,null,null,null,null,null,null,null,null,null,null,null,null,null,null,null,null,null,null,null,null,null,null,null,null,null,"(7)#197「抽出」は、図形内の文字を抽出します。ボタンをクリックするとダイアログボックスが現れるので図形をマウスで囲みます。"]
[40,null,null,null,null,null,null,null,null," ",null,null,null,null,null,null,null,null,null,null,null,null,null,null,null,null,null,null,null,null,null,null,null,null,null,null,null,null,null,null,null,null,"　　 次に書き出す先頭のセル１個をマウス指定します。"]
[41,null,null,null,null,null,null,null,null," ",null,null,null,null,null,null,null,null,null,null,null,null,null,null,null,null,null,null,null,null,null,null,null,null,null,null,null,null,null,null,null,null,"(8)#198「画像」は、範囲指定したフローチャートを作業中のブックと同じ場所に日時付きのjpg形式で保存します。"]
[42,null,null,null,null,null,null,null,null," ",null,null,null,null,null,null,null,null,null,null,null,null,null,null,null,null,null,null,null,null,null,null,null,null,null,null,null,null,null,null,null,null,"(9)#190「PDF」は、範囲指定したフローチャートを作業中のブックと同じ場所に日時付きファイルでPDF保存します。"]
[43,null,null,null,null,null,null,null,null," ",null,null,null,null,null,null,null,null,null,null,null,null,null,null,null,null,null,null,null,null,null,null,null,null,null,null,null,null,null,null,null,null,"(10)#200「コピー」は、現在開いているシートを複写します。"]
[44,null,null,null,null,null,null,null,null," ",null,null,null,null,null,null,null,null,null,null,null,null,null,null,null,null,null,null,null,null,null,null,null,null,null,null,null,null,null,null,null,null,"(11)#190「Mansikka」は、B18以降のように図形番号+半角スペース区切りの後に文字列を書き込むと指定図形に文字列を入れます。"]
[45,null,null,null,null,null,null,null,null," ",null,null,null,null,null,null,null,null,null,null,null,null,null,null,null,null,null,null,null,null,null,null,null,null,null,null,null,null,null,null,null,"4.免責、ほか"]
[46,null,null,null,null,null,null,null,null," ",null,null,null,null,null,null,null,null,null,null,null,null,null,null,null,null,null,null,null,null,null,null,null,null,null,null,null,null,null,null,null,null,"(1)次の内容を理解した場合にこのブックの利用許諾の権利を無償で得ます。"]
[47,null,null,null,null,null,null,null,null," ",null,null,null,null,null,null,null,null,null,null,null,null,null,null,null,null,null,null,null,null,null,null,null,null,null,null,null,null,null,null,null,null,"(2)著作権はマクロ中にリンク先が記されている場合は、リンク先の組織・個人の所有物になります。"]
[48,null,null,null,null,null,null,null,null," ",null,null,null,null,null,null,null,null,null,null,null,null,null,null,null,null,null,null,null,null,null,null,null,null,null,null,null,null,null,null,null,null,"(3)その他の部分は作者Mansikka(info@mansikka.info)が留保します。"]
[49,null,null,null,null,null,null,null,null," ",null,null,null,null,null,null,null,null,null,null,null,null,null,null,null,null,null,null,null,null,null,null,null,null,null,null,null,null,null,null,null,null,"(4)不許転載です。"]
[50,null,null,null,null,null,null,null,null," ",null,null,null,null,null,null,null,null,null,null,null,null,null,null,null,null,null,null,null,null,null,null,null,null,null,null,null,null,null,null,null,null,"(5)このファイルに係る講習・売買等は禁止です。"]
[51,null,null,null,null,null,null,null,null," ",null,null,null,null,null,null,null,null,null,null,null,null,null,null,null,null,null,null,null,null,null,null,null,null,null,null,null,null,null,null,null,null,"(6)このシートを使用することで生じる損害等はご容赦ください。"]
[52,null,null,null,null,null,null,null,null," ",null,null,null,null,null,null,null,null,null,null,null,null,null,null,null,null,null,null,null,null,null,null,null,null,null,null,null,null,null,null,null,null,"(7)不具合が生じても修正等の義務は負いません。"]
[53,null,null,null,null,null,null,null,null," ",null,null,null,null,null,null,null,null,null,null,null,null,null,null,null,null,null,null,null,null,null,null,null,null,null,null,null,null,null,null,null,null,"(8)エクセルの基本的な操作説明の義務を負いません。"]
[54,null,null,null,null,null,null,null,null," ",null,null,null,null,null,null,null,null,null,null,null,null,null,null,null,null,null,null,null,null,null,null,null,null,null,null,null,null,null,null,null,null,"(9)作成したフローチャートは広く共有しましょう。一人が作ったものが何人もの助けになります。"]
[55,null,null,null,null,null,null,null,null," ",null,null,null,null,null,null,null,null,null,null,null,null,null,null,null,null,null,null,null,null,null,null,null,null,null,null,null,null,null,null,null,null,"(10)便利だと思ったら3人に勧めてください。ネズミ算で利用者が増え、省力化が図れます。"]
[56,null,null,null,null,null,null,null,null," ",null,null,null,null,null,null,null,null,null,null,null,null,null,null,null,null,null,null,null,null,null,null,null,null,null,null,null,null,null,null,null,null,"(11)前向きな感想・励ましのみ、@MansikkaE へお願いします。(喜びます)"]
[57,null,null,null,null,null,null,null,null," "]
[58,null,null,null,null,null,null,null,null," "]
[59,null,null,null,null,null,null,null,null," "]
[60,null,null,null,null,null,null,null,null," "]
[61,null,null,null,null,null,null,null,null," "]
[62,null,null,null,null,null,null,null,null," "]
[63,null,null,null,null,null,null,null,null," "]
[64,null,null,null,null,null,null,null,null," "]
[65,null,null,null,null,null,null,null,null," "]
[66,null,null,null,null,null,null,null,null," "]
[67,null,null,null,null,null,null,null,null," "]
[68,null,null,null,null,null,null,null,null," "]
[69,null,null,null,null,null,null,null,null," "]
[70,null,null,null,null,null,null,null,null," "]
[71,null,null,null,null,null,null,null,null," "]
[72,null,null,null,null,null,null,null,null," "]
[73,null,null,null,null,null,null,null,null," "]
[74,null,null,null,null,null,null,null,null," "]
[75,null,null,null,null,null,null,null,null," "]
[76,null,null,null,null,null,null,null,null," "]
[77,null,null,null,null,null,null,null,null," "]
[78,null,null,null,null,null,null,null,null," "]
[79,null,null,null,null,null,null,null,null," "]
[80,null,null,null,null,null,null,null,null," "]
[81,null,null,null,null,null,null,null,null," "]
[82,null,null,null,null,null,null,null,null," "]
[83,null,null,null,null,null,null,null,null," "]
[84,null,null,null,null,null,null,null,null," "]
[85,null,null,null,null,null,null,null,null," "]
[86,null,null,null,null,null,null,null,null," "]
[87,null,null,null,null,null,null,null,null," "]
[88,null,null,null,null,null,null,null,null," "]
[89,null,null,null,null,null,null,null,null," "]
[90,null,null,null,null,null,null,null,null," "]
[91,null,null,null,null,null,null,null,null," "]
[92,null,null,null,null,null,null,null,null," "]
[93,null,null,null,null,null,null,null,null," "]
[94,null,null,null,null,null,null,null,null," "]
[95,null,null,null,null,null,null,null,null," "]
[96,null,null,null,null,null,null,null,null," "]
[97,null,null,null,null,null,null,null,null," "]
[98,null,null,null,null,null,null,null,null," "]
[99,null,null,null,null,null,null,null,null," "]

{"sheet":"ひな形","index":1,"n_rows":108,"n_cols":74,"rows_kept":108,"cut":false,"hidden":false,"merged":[]}
[null,1,{"$f":"B1+1","v":2},{"$f":"C1+1","v":3},4,5,6,7,8,9,10,11,12,13,14,15,16,17,18,19,20,21,22,23,24,null,{"$f":"Y5+1","v":73},{"$f":"AA1+1","v":74},75,76,77,78,79,80,81,82,83,84,85,86,87,88,89,90,91,92,93,94,95,96,null,{"$f":"AX5+1","v":145},{"$f":"AZ1+1","v":146},147,148,149,150,151,152,153,154,155,156,157,158,159,160,161,162,163,164,165,166,167]
[]
[null,{"$f":"Y1+1","v":25},{"$f":"B3+1","v":26},{"$f":"C3+1","v":27},28,29,30,31,32,33,34,35,36,37,38,39,40,41,42,43,44,45,46,47,48,null,{"$f":"AX1+1","v":97},{"$f":"AA3+1","v":98},99,100,101,102,103,104,105,106,107,108,109,110,111,112,113,114,115,116,117,118,119,120,null,{"$f":"BV1+1","v":168},{"$f":"AZ3+1","v":169},170,171,172,173,174,175,176,177,178,179,180,181,182,183,184,185,186,187,188,189,190]
[]
[null,{"$f":"Y3+1","v":49},{"$f":"B5+1","v":50},{"$f":"C5+1","v":51},52,53,54,55,56,57,58,59,60,61,62,63,64,65,66,67,68,69,70,71,72,null,{"$f":"AX3+1","v":121},{"$f":"AA5+1","v":122},123,124,125,126,127,128,129,130,131,132,133,134,135,136,137,138,139,140,141,142,143,144,null,191,null,{"$f":"AZ5+1","v":192},null,{"$f":"BB5+1","v":193},null,{"$f":"BD5+1","v":194},null,{"$f":"BF5+1","v":195},null,{"$f":"BH5+1","v":196},null,{"$f":"BJ5+1","v":197},null,{"$f":"BL5+1","v":198},null,{"$f":"BN5+1","v":199},null,{"$f":"BP5+1","v":200},null,"Y","N","D"]
[null,null,null,null,null,null,null,null,null,null,null,null,null,null,null,null,null,null,null,null,null,null,null,null,null,null,null,null,null,null,null,null,null,null,null,null,null,null,null,null,null,null,null,"欠番"]
[null,"フローチャート作成支援 - ©2002-2025 http://www.mansikka.info -",null,null,null,null,null,null,null,null,null,null,null,null,null,null,null,null,null,null,null,null,null,null,null,null,null,null,null,null,null,null,null,null,null,null,null,null,null,null,null,null,null,null,null,null,null,null,null,null,null,null,null,null,null,null,null,null,null,null,null,null,null,null,null,null,null,null,null,null,null,null,null,"エクセル方眼紙設定、標準：行高＝18、行幅＝2.38"]
[null,"図形挿入文字欄"]
[1,null,null,null,null,null,null,null,null," "]
[2,null,null,null,null,null,null,null,null," "]
[3,null,null,null,null,null,null,null,null," "]
[4,null,null,null,null,null,null,null,null," "]
[5,null,null,null,null,null,null,null,null," "]
[6,null,null,null,null,null,null,null,null," "]
[7,null,null,null,null,null,null,null,null," "]
[8,null,null,null,null,null,null,null,null," "]
[9,null,null,null,null,null,null,null,null," "]
[10,null,null,null,null,null,null,null,null," "]
[11,null,null,null,null,null,null,null,null," "]
[12,null,null,null,null,null,null,null,null," "]
[13,null,null,null,null,null,null,null,null," "]
[14,null,null,null,null,null,null,null,null," "]
[15,null,null,null,null,null,null,null,null," "]
[16,null,null,null,null,null,null,null,null," "]
[17,null,null,null,null,null,null,null,null," "]
[18,null,null,null,null,null,null,null,null," "]
[19,null,null,null,null,null,null,null,null," "]
[20,null,null,null,null,null,null,null,null," "]
[21,null,null,null,null,null,null,null,null," "]
[22,null,null,null,null,null,null,null,null," "]
[23,null,null,null,null,null,null,null,null," "]
[24,null,null,null,null,null,null,null,null," "]
[25,null,null,null,null,null,null,null,null," "]
[26,null,null,null,null,null,null,null,null," "]
[27,null,null,null,null,null,null,null,null," "]
[28,null,null,null,null,null,null,null,null," "]
[29,null,null,null,null,null,null,null,null," "]
[30,null,null,null,null,null,null,null,null," "]
[31,null,null,null,null,null,null,null,null," "]
[32,null,null,null,null,null,null,null,null," "]
[33,null,null,null,null,null,null,null,null," "]
[34,null,null,null,null,null,null,null,null," "]
[35,null,null,null,null,null,null,null,null," "]
[36,null,null,null,null,null,null,null,null," "]
[37,null,null,null,null,null,null,null,null," "]
[38,null,null,null,null,null,null,null,null," "]
[]
[39,null,null,null,null,null,null,null,null," "]
[40,null,null,null,null,null,null,null,null," "]
[41,null,null,null,null,null,null,null,null," "]
[42,null,null,null,null,null,null,null,null," "]
[43,null,null,null,null,null,null,null,null," "]
[44,null,null,null,null,null,null,null,null," "]
[45,null,null,null,null,null,null,null,null," "]
[46,null,null,null,null,null,null,null,null," "]
[47,null,null,null,null,null,null,null,null," "]
[48,null,null,null,null,null,null,null,null," "]
[49,null,null,null,null,null,null,null,null," "]
[50,null,null,null,null,null,null,null,null," "]
[51,null,null,null,null,null,null,null,null," "]
[52,null,null,null,null,null,null,null,null," "]
[53,null,null,null,null,null,null,null,null," "]
[54,null,null,null,null,null,null,null,null," "]
[55,null,null,null,null,null,null,null,null," "]
[56,null,null,null,null,null,null,null,null," "]
[57,null,null,null,null,null,null,null,null," "]
[58,null,null,null,null,null,null,null,null," "]
[59,null,null,null,null,null,null,null,null," "]
[60,null,null,null,null,null,null,null,null," "]
[61,null,null,null,null,null,null,null,null," "]
[62,null,null,null,null,null,null,null,null," "]
[63,null,null,null,null,null,null,null,null," "]
[64,null,null,null,null,null,null,null,null," "]
[65,null,null,null,null,null,null,null,null," "]
[66,null,null,null,null,null,null,null,null," "]
[67,null,null,null,null,null,null,null,null," "]
[68,null,null,null,null,null,null,null,null," "]
[69,null,null,null,null,null,null,null,null," "]
[70,null,null,null,null,null,null,null,null," "]
[71,null,null,null,null,null,null,null,null," "]
[72,null,null,null,null,null,null,null,null," "]
[73,null,null,null,null,null,null,null,null," "]
[74,null,null,null,null,null,null,null,null," "]
[75,null,null,null,null,null,null,null,null," "]
[76,null,null,null,null,null,null,null,null," "]
[77,null,null,null,null,null,null,null,null," "]
[78,null,null,null,null,null,null,null,null," "]
[79,null,null,null,null,null,null,null,null," "]
[80,null,null,null,null,null,null,null,null," "]
[81,null,null,null,null,null,null,null,null," "]
[82,null,null,null,null,null,null,null,null," "]
[83,null,null,null,null,null,null,null,null," "]
[84,null,null,null,null,null,null,null,null," "]
[85,null,null,null,null,null,null,null,null," "]
[86,null,null,null,null,null,null,null,null," "]
[87,null,null,null,null,null,null,null,null," "]
[88,null,null,null,null,null,null,null,null," "]
[89,null,null,null,null,null,null,null,null," "]
[90,null,null,null,null,null,null,null,null," "]
[91,null,null,null,null,null,null,null,null," "]
[92,null,null,null,null,null,null,null,null," "]
[93,null,null,null,null,null,null,null,null," "]
[94,null,null,null,null,null,null,null,null," "]
[95,null,null,null,null,null,null,null,null," "]
[96,null,null,null,null,null,null,null,null," "]
[97,null,null,null,null,null,null,null,null," "]
[98,null,null,null,null,null,null,null,null," "]
[99,null,null,null,null,null,null,null,null," "]

{"sheet":"(参考)監理指針_コンクリート工事","index":2,"n_rows":109,"n_cols":74,"rows_kept":109,"cut":false,"hidden":false,"merged":[]}
[null,1,{"$f":"B1+1","v":2},{"$f":"C1+1","v":3},4,5,6,7,8,9,10,11,12,13,14,15,16,17,18,19,20,21,22,23,24,null,{"$f":"Y5+1","v":73},{"$f":"AA1+1","v":74},75,76,77,78,79,80,81,82,83,84,85,86,87,88,89,90,91,92,93,94,95,96,null,{"$f":"AX5+1","v":145},{"$f":"AZ1+1","v":146},147,148,149,150,151,152,153,154,155,156,157,158,159,160,161,162,163,164,165,166,167]
[]
[null,{"$f":"Y1+1","v":25},{"$f":"B3+1","v":26},{"$f":"C3+1","v":27},28,29,30,31,32,33,34,35,36,37,38,39,40,41,42,43,44,45,46,47,48,null,{"$f":"AX1+1","v":97},{"$f":"AA3+1","v":98},99,100,101,102,103,104,105,106,107,108,109,110,111,112,113,114,115,116,117,118,119,120,null,{"$f":"BV1+1","v":168},{"$f":"AZ3+1","v":169},170,171,172,173,174,175,176,177,178,179,180,181,182,183,184,185,186,187,188,189,190]
[]
[null,{"$f":"Y3+1","v":49},{"$f":"B5+1","v":50},{"$f":"C5+1","v":51},52,53,54,55,56,57,58,59,60,61,62,63,64,65,66,67,68,69,70,71,72,null,{"$f":"AX3+1","v":121},{"$f":"AA5+1","v":122},123,124,125,126,127,128,129,130,131,132,133,134,135,136,137,138,139,140,141,142,143,144,null,191,null,{"$f":"AZ5+1","v":192},null,{"$f":"BB5+1","v":193},null,{"$f":"BD5+1","v":194},null,{"$f":"BF5+1","v":195},null,{"$f":"BH5+1","v":196},null,{"$f":"BJ5+1","v":197},null,{"$f":"BL5+1","v":198},null,{"$f":"BN5+1","v":199},null,{"$f":"BP5+1","v":200},null,"Y","N","D"]
[null,null,null,null,null,null,null,null,null,null,null,null,null,null,null,null,null,null,null,null,null,null,null,null,null,null,null,null,null,null,null,null,null,null,null,null,null,null,null,null,null,null,null,"欠番"]
[null,"フローチャート作成支援 - ©2002-2025 http://www.mansikka.info -",null,null,null,null,null,null,null,null,null,null,null,null,null,null,null,null,null,null,null,null,null,null,null,null,null,null,null,null,null,null,null,null,null,null,null,null,null,null,null,null,null,null,null,null,null,null,null,null,null,null,null,null,null,null,null,null,null,null,null,null,null,null,null,null,null,null,null,null,null,null,null,"エクセル方眼紙設定、標準：行高＝18、行幅＝2.38"]
[null,"図形挿入文字欄"]
[1,"準備",null,null,null,null,null,null,null," ",null,null,"【図６．１．１　コンクリート工事の作業の流れ(普通コンクリート)】",null,null,null,null,null,null,null,null,null,null,null,null,null,null,null,null,null,null,null,null,null,null,null,null,null,null,null,null,null,null,null,null,null,null,null,null,null,null,null,null,null,null,null,null,null,null,null,null,null,null,null,null,null,null,null,null,null,null,null,null,"【図６．１．１　コンクリート工事の作業の流れ(普通コンクリート)】"]
[2,"設計図書の確認",null,null,null,null,null,null,null," ",null,null,"『建築工事監理指針 令和4年版』より"]
[3,"工程表の作成",null,null,null,null,null,null,null," "]
[4,"施工計画書の作成",null,null,null,null,null,null,null," "]
[5,"型枠の組立",null,null,null,null,null,null,null," "]
[6,"施工図との照合",null,null,null,null,null,null,null," "]
[7,"緊張材にコーンを使用する箇所",null,null,null,null,null,null,null," "]
[8,"工場の決定",null,null,null,null,null,null,null," "]
[9,"Ⅰ類コンクリート",null,null,null,null,null,null,null," "]
[10,"Ⅱ類コンクリート",null,null,null,null,null,null,null," "]
[11,"製造設備、品質管理の状態",null,null,null,null,null,null,null," "]
[12,"運搬時間",null,null,null,null,null,null,null," "]
[13,"計画調合の検討",null,null,null,null,null,null,null," "]
[14,"セメント、骨材、混和材量、水",null,null,null,null,null,null,null," "]
[15,"調合管理強度",null,null,null,null,null,null,null," "]
[16,"水セメント比",null,null,null,null,null,null,null," "]
[17,"計画スランプ",null,null,null,null,null,null,null," "]
[18,"試し練り\n(Ⅰ類コンクリート以外)",null,null,null,null,null,null,null," "]
[19,"調合強度",null,null,null,null,null,null,null," "]
[20,"計画スランプ",null,null,null,null,null,null,null," "]
[21,"計画空気量",null,null,null,null,null,null,null," "]
[22,"計画調合の決定",null,null,null,null,null,null,null," "]
[23,"コンクリート製造",null,null,null,null,null,null,null," "]
[24,"運搬･荷卸し･製品検査",null,null,null,null,null,null,null," "]
[25,"試験用試料の採取",null,null,null,null,null,null,null," "]
[26,"構造体コンクリート強度の確認",null,null,null,null,null,null,null," "]
[27,"強度試験",null,null,null,null,null,null,null," "]
[28,"強度試験の判定",null,null,null,null,null,null,null," "]
[29,"不合格のときの処置",null,null,null,null,null,null,null," "]
[30,"工事現場内運搬(圧送)",null,null,null,null,null,null,null," "]
[31,"コンクリートポンプの圧送能力",null,null,null,null,null,null,null," "]
[32,"輸送管の配置",null,null,null,null,null,null,null," "]
[33,"輸送管支持方法",null,null,null,null,null,null,null," "]
[34,"圧送が中断した時の処置",null,null,null,null,null,null,null," "]
[35,"打込み・締固め",null,null,null,null,null,null,null," "]
[36,"打込み区画",null,null,null,null,null,null,null," "]
[37,"打込み順序",null,null,null,null,null,null,null," "]
[38,"作業動線",null,null,null,null,null,null,null," "]
[null,"作業員の配置"]
[39,"タンピング",null,null,null,null,null,null,null," "]
[40,"コンクリートこて仕上げ",null,null,null,null,null,null,null," "]
[41,"養生",null,null,null,null,null,null,null," "]
[42,"打込み後の養生",null,null,null,null,null,null,null," "]
[null,"型枠の取外し"]
[43,"材齢",null,null,null,null,null,null,null," "]
[44,"圧縮強度と構造計算",null,null,null,null,null,null,null," "]
[45,"コンクリートの補修",null,null,null,null,null,null,null," "]
[46,"補修方法",null,null,null,null,null,null,null," "]
[47,"型枠緊張材の頭処理",null,null,null,null,null,null,null," "]
[48,null,null,null,null,null,null,null,null," "]
[49,"品質の管理",null,null,null,null,null,null,null," "]
[50,"スランプ",null,null,null,null,null,null,null," "]
[51,"空気量",null,null,null,null,null,null,null," "]
[52,"塩化物量及びアルカリ総量",null,null,null,null,null,null,null," "]
[53,"調合管理強度の管理試験",null,null,null,null,null,null,null," "]
[54,"調合管理強度の判定",null,null,null,null,null,null,null," "]
[55,"計画調合の変更",null,null,null,null,null,null,null," "]
[56,null,null,null,null,null,null,null,null," "]
[57,null,null,null,null,null,null,null,null," "]
[58,null,null,null,null,null,null,null,null," "]
[59,null,null,null,null,null,null,null,null," "]
[60,null,null,null,null,null,null,null,null," "]
[61,null,null,null,null,null,null,null,null," "]
[62,null,null,null,null,null,null,null,null," "]
[63,null,null,null,null,null,null,null,null," "]
[64,null,null,null,null,null,null,null,null," "]
[65,null,null,null,null,null,null,null,null," "]
[66,null,null,null,null,null,null,null,null," "]
[67,null,null,null,null,null,null,null,null," "]
[68,null,null,null,null,null,null,null,null," "]
[69,null,null,null,null,null,null,null,null," "]
[70,null,null,null,null,null,null,null,null," "]
[71,null,null,null,null,null,null,null,null," "]
[72,null,null,null,null,null,null,null,null," "]
[73,null,null,null,null,null,null,null,null," "]
[74,null,null,null,null,null,null,null,null," "]
[75,null,null,null,null,null,null,null,null," "]
[76,null,null,null,null,null,null,null,null," "]
[77,null,null,null,null,null,null,null,null," "]
[78,null,null,null,null,null,null,null,null," "]
[79,null,null,null,null,null,null,null,null," "]
[80,null,null,null,null,null,null,null,null," "]
[81,null,null,null,null,null,null,null,null," "]
[82,null,null,null,null,null,null,null,null," "]
[83,null,null,null,null,null,null,null,null," "]
[84,null,null,null,null,null,null,null,null," "]
[85,null,null,null,null,null,null,null,null," "]
[86,null,null,null,null,null,null,null,null," "]
[87,null,null,null,null,null,null,null,null," "]
[88,null,null,null,null,null,null,null,null," "]
[89,null,null,null,null,null,null,null,null," "]
[90,null,null,null,null,null,null,null,null," "]
[91,null,null,null,null,null,null,null,null," "]
[92,null,null,null,null,null,null,null,null," "]
[93,null,null,null,null,null,null,null,null," "]
[94,null,null,null,null,null,null,null,null," "]
[95,null,null,null,null,null,null,null,null," "]
[96,null,null,null,null,null,null,null,null," "]
[97,null,null,null,null,null,null,null,null," "]
[98,null,null,null,null,null,null,null,null," "]
[99,null,null,null,null,null,null,null,null," "]

{"sheet":"(参考)一般的なフローチャート","index":3,"n_rows":109,"n_cols":74,"rows_kept":109,"cut":false,"hidden":false,"merged":[]}
[null,1,{"$f":"B1+1","v":2},{"$f":"C1+1","v":3},4,5,6,7,8,9,10,11,12,13,14,15,16,17,18,19,20,21,22,23,24,null,{"$f":"Y5+1","v":73},{"$f":"AA1+1","v":74},75,76,77,78,79,80,81,82,83,84,85,86,87,88,89,90,91,92,93,94,95,96,null,{"$f":"AX5+1","v":145},{"$f":"AZ1+1","v":146},147,148,149,150,151,152,153,154,155,156,157,158,159,160,161,162,163,164,165,166,167]
[]
[null,{"$f":"Y1+1","v":25},{"$f":"B3+1","v":26},{"$f":"C3+1","v":27},28,29,30,31,32,33,34,35,36,37,38,39,40,41,42,43,44,45,46,47,48,null,{"$f":"AX1+1","v":97},{"$f":"AA3+1","v":98},99,100,101,102,103,104,105,106,107,108,109,110,111,112,113,114,115,116,117,118,119,120,null,{"$f":"BV1+1","v":168},{"$f":"AZ3+1","v":169},170,171,172,173,174,175,176,177,178,179,180,181,182,183,184,185,186,187,188,189,190]
[]
[null,{"$f":"Y3+1","v":49},{"$f":"B5+1","v":50},{"$f":"C5+1","v":51},52,53,54,55,56,57,58,59,60,61,62,63,64,65,66,67,68,69,70,71,72,null,{"$f":"AX3+1","v":121},{"$f":"AA5+1","v":122},123,124,125,126,127,128,129,130,131,132,133,134,135,136,137,138,139,140,141,142,143,144,null,191,null,{"$f":"AZ5+1","v":192},null,{"$f":"BB5+1","v":193},null,{"$f":"BD5+1","v":194},null,{"$f":"BF5+1","v":195},null,{"$f":"BH5+1","v":196},null,{"$f":"BJ5+1","v":197},null,{"$f":"BL5+1","v":198},null,{"$f":"BN5+1","v":199},null,{"$f":"BP5+1","v":200},null,"Y","N","D"]
[null,null,null,null,null,null,null,null,null,null,null,null,null,null,null,null,null,null,null,null,null,null,null,null,null,null,null,null,null,null,null,null,null,null,null,null,null,null,null,null,null,null,null,"欠番"]
[null,"フローチャート作成支援 - ©2002-2025 http://www.mansikka.info -",null,null,null,null,null,null,null,null,null,null,null,null,null,null,null,null,null,null,null,null,null,null,null,null,null,null,null,null,null,null,null,null,null,null,null,null,null,null,null,null,null,null,null,null,null,null,null,null,null,null,null,null,null,null,null,null,null,null,null,null,null,null,null,null,null,null,null,null,null,null,null,"エクセル方眼紙設定、標準：行高＝18、行幅＝2.38"]
[null,"図形挿入文字欄"]
[1,"69 処理開始",null,null,null,null,null,null,null," "]
[2,"75 処理１",null,null,null,null,null,null,null," "]
[3,"75 処理２",null,null,null,null,null,null,null," "]
[4,"75 処理３",null,null,null,null,null,null,null," "]
[5,"69 処理終了",null,null,null,null,null,null,null," "]
[6,null,null,null,null,null,null,null,null," "]
[7,"69 処理開始",null,null,null,null,null,null,null," "]
[8,"75 処理１",null,null,null,null,null,null,null," "]
[9,"63 判断・条件分岐",null,null,null,null,null,null,null," "]
[10,"75 処理２",null,null,null,null,null,null,null," "]
[11,"75 処理３",null,null,null,null,null,null,null," "]
[12,"75 処理４",null,null,null,null,null,null,null," "]
[13,"69 処理終了",null,null,null,null,null,null,null," "]
[14,null,null,null,null,null,null,null,null," "]
[15,null,null,null,null,null,null,null,null," "]
[16,null,null,null,null,null,null,null,null," "]
[17,null,null,null,null,null,null,null,null," "]
[18,null,null,null,null,null,null,null,null," "]
[19,null,null,null,null,null,null,null,null," "]
[20,null,null,null,null,null,null,null,null," "]
[21,null,null,null,null,null,null,null,null," "]
[22,null,null,null,null,null,null,null,null," "]
[23,null,null,null,null,null,null,null,null," "]
[24,null,null,null,null,null,null,null,null," "]
[25,null,null,null,null,null,null,null,null," "]
[26,null,null,null,null,null,null,null,null," "]
[27,null,null,null,null,null,null,null,null," "]
[28,null,null,null,null,null,null,null,null," "]
[29,null,null,null,null,null,null,null,null," "]
[30,null,null,null,null,null,null,null,null," "]
[31,null,null,null,null,null,null,null,null," "]
[32,null,null,null,null,null,null,null,null," "]
[33,null,null,null,null,null,null,null,null," "]
[34,null,null,null,null,null,null,null,null," "]
[35,null,null,null,null,null,null,null,null," "]
[36,null,null,null,null,null,null,null,null," "]
[37,null,null,null,null,null,null,null,null," "]
[38,null,null,null,null,null,null,null,null," "]
[]
[39,null,null,null,null,null,null,null,null," "]
[40,null,null,null,null,null,null,null,null," "]
[41,null,null,null,null,null,null,null,null," "]
[42,null,null,null,null,null,null,null,null," "]
[]
[43,null,null,null,null,null,null,null,null," "]
[44,null,null,null,null,null,null,null,null," "]
[45,null,null,null,null,null,null,null,null," "]
[46,null,null,null,null,null,null,null,null," "]
[47,null,null,null,null,null,null,null,null," "]
[48,null,null,null,null,null,null,null,null," "]
[49,null,null,null,null,null,null,null,null," "]
[50,null,null,null,null,null,null,null,null," "]
[51,null,null,null,null,null,null,null,null," "]
[52,null,null,null,null,null,null,null,null," "]
[53,null,null,null,null,null,null,null,null," "]
[54,null,null,null,null,null,null,null,null," "]
[55,null,null,null,null,null,null,null,null," "]
[56,null,null,null,null,null,null,null,null," "]
[57,null,null,null,null,null,null,null,null," "]
[58,null,null,null,null,null,null,null,null," "]
[59,null,null,null,null,null,null,null,null," "]
[60,null,null,null,null,null,null,null,null," "]
[61,null,null,null,null,null,null,null,null," "]
[62,null,null,null,null,null,null,null,null," "]
[63,null,null,null,null,null,null,null,null," "]
[64,null,null,null,null,null,null,null,null," "]
[65,null,null,null,null,null,null,null,null," "]
[66,null,null,null,null,null,null,null,null," "]
[67,null,null,null,null,null,null,null,null," "]
[68,null,null,null,null,null,null,null,null," "]
[69,null,null,null,null,null,null,null,null," "]
[70,null,null,null,null,null,null,null,null," "]
[71,null,null,null,null,null,null,null,null," "]
[72,null,null,null,null,null,null,null,null," "]
[73,null,null,null,null,null,null,null,null," "]
[74,null,null,null,null,null,null,null,null," "]
[75,null,null,null,null,null,null,null,null," "]
[76,null,null,null,null,null,null,null,null," "]
[77,null,null,null,null,null,null,null,null," "]
[78,null,null,null,null,null,null,null,null," "]
[79,null,null,null,null,null,null,null,null," "]
[80,null,null,null,null,null,null,null,null," "]
[81,null,null,null,null,null,null,null,null," "]
[82,null,null,null,null,null,null,null,null," "]
[83,null,null,null,null,null,null,null,null," "]
[84,null,null,null,null,null,null,null,null," "]
[85,null,null,null,null,null,null,null,null," "]
[86,null,null,null,null,null,null,null,null," "]
[87,null,null,null,null,null,null,null,null," "]
[88,null,null,null,null,null,null,null,null," "]
[89,null,null,null,null,null,null,null,null," "]
[90,null,null,null,null,null,null,null,null," "]
[91,null,null,null,null,null,null,null,null," "]
[92,null,null,null,null,null,null,null,null," "]
[93,null,null,null,null,null,null,null,null," "]
[94,null,null,null,null,null,null,null,null," "]
[95,null,null,null,null,null,null,null,null," "]
[96,null,null,null,null,null,null,null,null," "]
[97,null,null,null,null,null,null,null,null," "]
[98,null,null,null,null,null,null,null,null," "]
[99,null,null,null,null,null,null,null,null," "]

{"sheet":"(参考)施工計画書_山留工事(SMW工法)","index":4,"n_rows":109,"n_cols":74,"rows_kept":109,"cut":false,"hidden":false,"merged":[]}
[null,1,{"$f":"B1+1","v":2},{"$f":"C1+1","v":3},4,5,6,7,8,9,10,11,12,13,14,15,16,17,18,19,20,21,22,23,24,null,{"$f":"Y5+1","v":73},{"$f":"AA1+1","v":74},75,76,77,78,79,80,81,82,83,84,85,86,87,88,89,90,91,92,93,94,95,96,null,{"$f":"AX5+1","v":145},{"$f":"AZ1+1","v":146},147,148,149,150,151,152,153,154,155,156,157,158,159,160,161,162,163,164,165,166,167]
[]
[null,{"$f":"Y1+1","v":25},{"$f":"B3+1","v":26},{"$f":"C3+1","v":27},28,29,30,31,32,33,34,35,36,37,38,39,40,41,42,43,44,45,46,47,48,null,{"$f":"AX1+1","v":97},{"$f":"AA3+1","v":98},99,100,101,102,103,104,105,106,107,108,109,110,111,112,113,114,115,116,117,118,119,120,null,{"$f":"BV1+1","v":168},{"$f":"AZ3+1","v":169},170,171,172,173,174,175,176,177,178,179,180,181,182,183,184,185,186,187,188,189,190]
[]
[null,{"$f":"Y3+1","v":49},{"$f":"B5+1","v":50},{"$f":"C5+1","v":51},52,53,54,55,56,57,58,59,60,61,62,63,64,65,66,67,68,69,70,71,72,null,{"$f":"AX3+1","v":121},{"$f":"AA5+1","v":122},123,124,125,126,127,128,129,130,131,132,133,134,135,136,137,138,139,140,141,142,143,144,null,191,null,{"$f":"AZ5+1","v":192},null,{"$f":"BB5+1","v":193},null,{"$f":"BD5+1","v":194},null,{"$f":"BF5+1","v":195},null,{"$f":"BH5+1","v":196},null,{"$f":"BJ5+1","v":197},null,{"$f":"BL5+1","v":198},null,{"$f":"BN5+1","v":199},null,{"$f":"BP5+1","v":200},null,"Y","N","D"]
[null,null,null,null,null,null,null,null,null,null,null,null,null,null,null,null,null,null,null,null,null,null,null,null,null,null,null,null,null,null,null,null,null,null,null,null,null,null,null,null,null,null,null,"欠番"]
[null,"フローチャート作成支援 - ©2002-2025 http://www.mansikka.info -",null,null,null,null,null,null,null,null,null,null,null,null,null,null,null,null,null,null,null,null,null,null,null,null,null,null,null,null,null,null,null,null,null,null,null,null,null,null,null,null,null,null,null,null,null,null,null,null,null,null,null,null,null,null,null,null,null,null,null,null,null,null,null,null,null,null,null,null,null,null,null,"エクセル方眼紙設定、標準：行高＝18、行幅＝2.38"]
[null,"図形挿入文字欄"]
[1,"障害物撤去\n隣地養生（飛散養生）\n作業床造成（敷鉄板等）",null,null,null,null,null,null,null," "]
[2,"連続壁壁芯出し",null,null,null,null,null,null,null," "]
[3,"プラント",null,null,null,null,null,null,null," "]
[4,"材料搬入",null,null,null,null,null,null,null," "]
[5,"混合攪拌",null,null,null,null,null,null,null," "]
[6,"セメントミルク注入",null,null,null,null,null,null,null," "]
[7,"残土（泥土）処理",null,null,null,null,null,null,null," "]
[8,"クレーン",null,null,null,null,null,null,null," "]
[9,null,null,null,null,null,null,null,null," "]
[10,"SMW機搬入・組立",null,null,null,null,null,null,null," "]
[11,"溝掘り",null,null,null,null,null,null,null," "]
[12,"ガイド定規設置",null,null,null,null,null,null,null," "]
[13,"SMW機設置",null,null,null,null,null,null,null," "]
[14,"削孔混練",null,null,null,null,null,null,null," "]
[15,"ターニング",null,null,null,null,null,null,null," "]
[16,"引抜・攪拌",null,null,null,null,null,null,null," "]
[17,"削孔完了",null,null,null,null,null,null,null," "]
[18,"SMW機移動",null,null,null,null,null,null,null," "]
[19,"エレメントの完了",null,null,null,null,null,null,null," "]
[20,"杭芯・垂直性・方向\n天端高",null,null,null,null,null,null,null," "]
[21,null,null,null,null,null,null,null,null," "]
[22,"地盤の安定性\n隣接物との離れ\n柱状図・施工図",null,null,null,null,null,null,null," "]
[23,"泥土飛散・流出養生",null,null,null,null,null,null,null," "]
[24,"連続壁壁芯・ピッチ",null,null,null,null,null,null,null," "]
[25,"連続壁壁芯・方向",null,null,null,null,null,null,null," "]
[26,null,null,null,null,null,null,null,null," "]
[27,"錘の垂直性\nセメントミルクの配合\nセメントミルクの注入量",null,null,null,null,null,null,null," "]
[28,"削孔深度",null,null,null,null,null,null,null," "]
[29,"地盤の安定性",null,null,null,null,null,null,null," "]
[30,null,null,null,null,null,null,null,null," "]
[31,null,null,null,null,null,null,null,null," "]
[32,null,null,null,null,null,null,null,null," "]
[33,null,null,null,null,null,null,null,null," "]
[34,null,null,null,null,null,null,null,null," "]
[35,null,null,null,null,null,null,null,null," "]
[36,null,null,null,null,null,null,null,null," "]
[37,null,null,null,null,null,null,null,null," "]
[38,null,null,null,null,null,null,null,null," "]
[]
[39,null,null,null,null,null,null,null,null," "]
[40,null,null,null,null,null,null,null,null," "]
[41,null,null,null,null,null,null,null,null," "]
[42,null,null,null,null,null,null,null,null," "]
[]
[43,null,null,null,null,null,null,null,null," "]
[44,null,null,null,null,null,null,null,null," "]
[45,null,null,null,null,null,null,null,null," "]
[46,null,null,null,null,null,null,null,null," "]
[47,null,null,null,null,null,null,null,null," "]
[48,null,null,null,null,null,null,null,null," "]
[49,null,null,null,null,null,null,null,null," "]
[50,null,null,null,null,null,null,null,null," "]
[51,null,null,null,null,null,null,null,null," "]
[52,null,null,null,null,null,null,null,null," "]
[53,null,null,null,null,null,null,null,null," "]
[54,null,null,null,null,null,null,null,null," "]
[55,null,null,null,null,null,null,null,null," "]
[56,null,null,null,null,null,null,null,null," "]
[57,null,null,null,null,null,null,null,null," "]
[58,null,null,null,null,null,null,null,null," "]
[59,null,null,null,null,null,null,null,null," "]
[60,null,null,null,null,null,null,null,null," "]
[61,null,null,null,null,null,null,null,null," "]
[62,null,null,null,null,null,null,null,null," "]
[63,null,null,null,null,null,null,null,null," "]
[64,null,null,null,null,null,null,null,null," "]
[65,null,null,null,null,null,null,null,null," "]
[66,null,null,null,null,null,null,null,null," "]
[67,null,null,null,null,null,null,null,null," "]
[68,null,null,null,null,null,null,null,null," "]
[69,null,null,null,null,null,null,null,null," "]
[70,null,null,null,null,null,null,null,null," "]
[71,null,null,null,null,null,null,null,null," "]
[72,null,null,null,null,null,null,null,null," "]
[73,null,null,null,null,null,null,null,null," "]
[74,null,null,null,null,null,null,null,null," "]
[75,null,null,null,null,null,null,null,null," "]
[76,null,null,null,null,null,null,null,null," "]
[77,null,null,null,null,null,null,null,null," "]
[78,null,null,null,null,null,null,null,null," "]
[79,null,null,null,null,null,null,null,null," "]
[80,null,null,null,null,null,null,null,null," "]
[81,null,null,null,null,null,null,null,null," "]
[82,null,null,null,null,null,null,null,null," "]
[83,null,null,null,null,null,null,null,null," "]
[84,null,null,null,null,null,null,null,null," "]
[85,null,null,null,null,null,null,null,null," "]
[86,null,null,null,null,null,null,null,null," "]
[87,null,null,null,null,null,null,null,null," "]
[88,null,null,null,null,null,null,null,null," "]
[89,null,null,null,null,null,null,null,null," "]
[90,null,null,null,null,null,null,null,null," "]
[91,null,null,null,null,null,null,null,null," "]
[92,null,null,null,null,null,null,null,null," "]
[93,null,null,null,null,null,null,null,null," "]
[94,null,null,null,null,null,null,null,null," "]
[95,null,null,null,null,null,null,null,null," "]
[96,null,null,null,null,null,null,null,null," "]
[97,null,null,null,null,null,null,null,null," "]
[98,null,null,null,null,null,null,null,null," "]
[99,null,null,null,null,null,null,null,null," "]

{"sheet":"(参考)ボーリング","index":5,"n_rows":107,"n_cols":74,"rows_kept":107,"cut":false,"hidden":false,"merged":[]}
[null,1,{"$f":"B1+1","v":2},{"$f":"C1+1","v":3},4,5,6,7,8,9,10,11,12,13,14,15,16,17,18,19,20,21,22,23,24,null,{"$f":"Y5+1","v":73},{"$f":"AA1+1","v":74},75,76,77,78,79,80,81,82,83,84,85,86,87,88,89,90,91,92,93,94,95,96,null,{"$f":"AX5+1","v":145},{"$f":"AZ1+1","v":146},147,148,149,150,151,152,153,154,155,156,157,158,159,160,161,162,163,164,165,166,167]
[]
[null,{"$f":"Y1+1","v":25},{"$f":"B3+1","v":26},{"$f":"C3+1","v":27},28,29,30,31,32,33,34,35,36,37,38,39,40,41,42,43,44,45,46,47,48,null,{"$f":"AX1+1","v":97},{"$f":"AA3+1","v":98},99,100,101,102,103,104,105,106,107,108,109,110,111,112,113,114,115,116,117,118,119,120,null,{"$f":"BV1+1","v":168},{"$f":"AZ3+1","v":169},170,171,172,173,174,175,176,177,178,179,180,181,182,183,184,185,186,187,188,189,190]
[]
[null,{"$f":"Y3+1","v":49},{"$f":"B5+1","v":50},{"$f":"C5+1","v":51},52,53,54,55,56,57,58,59,60,61,62,63,64,65,66,67,68,69,70,71,72,null,{"$f":"AX3+1","v":121},{"$f":"AA5+1","v":122},123,124,125,126,127,128,129,130,131,132,133,134,135,136,137,138,139,140,141,142,143,144,null,191,null,{"$f":"AZ5+1","v":192},null,{"$f":"BB5+1","v":193},null,{"$f":"BD5+1","v":194},null,{"$f":"BF5+1","v":195},null,{"$f":"BH5+1","v":196},null,{"$f":"BJ5+1","v":197},null,{"$f":"BL5+1","v":198},null,{"$f":"BN5+1","v":199},null,{"$f":"BP5+1","v":200},null,"Y","N","D"]
[null,null,null,null,null,null,null,null,null,null,null,null,null,null,null,null,null,null,null,null,null,null,null,null,null,null,null,null,null,null,null,null,null,null,null,null,null,null,null,null,null,null,null,"欠番"]
[null,"フローチャート作成支援 - ©2002-2025 http://www.mansikka.info -",null,null,null,null,null,null,null,null,null,null,null,null,null,null,null,null,null,null,null,null,null,null,null,null,null,null,null,null,null,null,null,null,null,null,null,null,null,null,null,null,null,null,null,null,null,null,null,null,null,null,null,null,null,null,null,null,null,null,null,null,null,null,null,null,null,null,null,null,null,null,null,"エクセル方眼紙設定、標準：行高＝18、行幅＝2.38"]
[null,"図形挿入文字欄"]
[1,"型枠工事(建築工事)",null,null,null,null,null,null,null," ",null,null,"【スリーブ入れ、フローチャート】"]
[2,"墨出し(スリーブ径＋かぶり)",null,null,null,null,null,null,null," "]
[3,"配筋(建築工事)",null,null,null,null,null,null,null," "]
[4,"補強筋(実施者、協議)",null,null,null,null,null,null,null," "]
[5,"配筋切断(実施者、協議)",null,null,null,null,null,null,null," "]
[6,"スリーブ設置",null,null,null,null,null,null,null," "]
[7,"確認、工事記録写真撮影",null,null,null,null,null,null,null," "]
[8,null,null,null,null,null,null,null,null," "]
[9,"設置当日に検査写真を提出",null,null,null,null,null,null,null," "]
[10,"配筋(建築工事)",null,null,null,null,null,null,null," "]
[11,"かぶりチェック欄は×",null,null,null,null,null,null,null," "]
[12,"是正",null,null,null,null,null,null,null," "]
[13,"是正写真",null,null,null,null,null,null,null," "]
[14,"終了(元請け・監理者チェック)",null,null,null,null,null,null,null," "]
[15,"是正",null,null,null,null,null,null,null," "]
[16,"配筋検査(設計検査)",null,null,null,null,null,null,null," "]
[17,"コンクリート打設(建築工事)",null,null,null,null,null,null,null," "]
[18,null,null,null,null,null,null,null,null," "]
[19,null,null,null,null,null,null,null,null," "]
[20,null,null,null,null,null,null,null,null," "]
[21,null,null,null,null,null,null,null,null," "]
[22,null,null,null,null,null,null,null,null," "]
[23,null,null,null,null,null,null,null,null," "]
[24,null,null,null,null,null,null,null,null," "]
[25,null,null,null,null,null,null,null,null," "]
[26,null,null,null,null,null,null,null,null," "]
[27,null,null,null,null,null,null,null,null," "]
[28,null,null,null,null,null,null,null,null," "]
[29,null,null,null,null,null,null,null,null," "]
[30,null,null,null,null,null,null,null,null," "]
[31,null,null,null,null,null,null,null,null," "]
[32,null,null,null,null,null,null,null,null," "]
[33,null,null,null,null,null,null,null,null," "]
[34,null,null,null,null,null,null,null,null," "]
[35,null,null,null,null,null,null,null,null," "]
[36,null,null,null,null,null,null,null,null," "]
[37,null,null,null,null,null,null,null,null," "]
[38,null,null,null,null,null,null,null,null," "]
[39,null,null,null,null,null,null,null,null," "]
[40,null,null,null,null,null,null,null,null," "]
[41,null,null,null,null,null,null,null,null," "]
[42,null,null,null,null,null,null,null,null," "]
[43,null,null,null,null,null,null,null,null," "]
[44,null,null,null,null,null,null,null,null," "]
[45,null,null,null,null,null,null,null,null," "]
[46,null,null,null,null,null,null,null,null," "]
[47,null,null,null,null,null,null,null,null," "]
[48,null,null,null,null,null,null,null,null," "]
[49,null,null,null,null,null,null,null,null," "]
[50,null,null,null,null,null,null,null,null," "]
[51,null,null,null,null,null,null,null,null," "]
[52,null,null,null,null,null,null,null,null," "]
[53,null,null,null,null,null,null,null,null," "]
[54,null,null,null,null,null,null,null,null," "]
[55,null,null,null,null,null,null,null,null," "]
[56,null,null,null,null,null,null,null,null," "]
[57,null,null,null,null,null,null,null,null," "]
[58,null,null,null,null,null,null,null,null," "]
[59,null,null,null,null,null,null,null,null," "]
[60,null,null,null,null,null,null,null,null," "]
[61,null,null,null,null,null,null,null,null," "]
[62,null,null,null,null,null,null,null,null," "]
[63,null,null,null,null,null,null,null,null," "]
[64,null,null,null,null,null,null,null,null," "]
[65,null,null,null,null,null,null,null,null," "]
[66,null,null,null,null,null,null,null,null," "]
[67,null,null,null,null,null,null,null,null," "]
[68,null,null,null,null,null,null,null,null," "]
[69,null,null,null,null,null,null,null,null," "]
[70,null,null,null,null,null,null,null,null," "]
[71,null,null,null,null,null,null,null,null," "]
[72,null,null,null,null,null,null,null,null," "]
[73,null,null,null,null,null,null,null,null," "]
[74,null,null,null,null,null,null,null,null," "]
[75,null,null,null,null,null,null,null,null," "]
[76,null,null,null,null,null,null,null,null," "]
[77,null,null,null,null,null,null,null,null," "]
[78,null,null,null,null,null,null,null,null," "]
[79,null,null,null,null,null,null,null,null," "]
[80,null,null,null,null,null,null,null,null," "]
[81,null,null,null,null,null,null,null,null," "]
[82,null,null,null,null,null,null,null,null," "]
[83,null,null,null,null,null,null,null,null," "]
[84,null,null,null,null,null,null,null,null," "]
[85,null,null,null,null,null,null,null,null," "]
[86,null,null,null,null,null,null,null,null," "]
[87,null,null,null,null,null,null,null,null," "]
[88,null,null,null,null,null,null,null,null," "]
[89,null,null,null,null,null,null,null,null," "]
[90,null,null,null,null,null,null,null,null," "]
[91,null,null,null,null,null,null,null,null," "]
[92,null,null,null,null,null,null,null,null," "]
[93,null,null,null,null,null,null,null,null," "]
[94,null,null,null,null,null,null,null,null," "]
[95,null,null,null,null,null,null,null,null," "]
[96,null,null,null,null,null,null,null,null," "]
[97,null,null,null,null,null,null,null,null," "]
[98,null,null,null,null,null,null,null,null," "]
[99,null,null,null,null,null,null,null,null," "]

{"sheet":"ShapeMapping","index":6,"n_rows":190,"n_cols":7,"rows_kept":190,"cut":false,"hidden":false,"merged":[]}
["ShapeNumber","ShapeType","Description","HeightRatio","WidthRatio","説明","このファイルはフローチャートのアイコンと連動しているので無暗に触るとマクロが動かなくなります。"]
[1,1,"Rectangle",2,4,"四角形"]
[2,2,"Parallelogram",2,4,"平行四辺形"]
[3,3,"Trapezoid",2,4,"台形"]
[4,4,"Diamond",2,4,"ひし形"]
[5,5,"RoundedRectangle",2,4,"角丸四角形"]
[6,6,"Octagon",4,4,"オクタゴン"]
[7,7,"IsoscelesTriangle",4,4,"三角形の三角形"]
[8,8,"RightTriangle",4,4,"右三角形"]
[9,9,"Oval",4,4,"楕円"]
[10,10,"Hexagon",4,4,"六角形"]
[11,11,"Cross",4,4,"交差"]
[12,12,"RegularPentagon",4,4,"ペンタゴン"]
[13,13,"Can",4,4,"Can"]
[14,14,"Cube",4,4,"キューブ"]
[15,15,"Bevel",4,4,"Bevel"]
[16,16,"FoldedCorner",4,4,"折り曲げコーナー"]
[17,17,"SmileyFace",4,4,"スマイリーフェイス"]
[18,18,"Donut",4,4,"ドーナツ"]
[19,19,"NoSymbol",4,4,"いいえ記号"]
[20,20,"BlockArc",4,4,"円弧をブロックする"]
[21,21,"Heart",4,4,"心"]
[22,22,"LightningBolt",4,4,"稲妻"]
[23,23,"Sun",4,4,"日"]
[24,24,"Moon",4,4,"月"]
[25,25,"Arc",3,3,"アーク"]
[26,26,"DoubleBracket",2,4,"二重角かっこ"]
[27,27,"DoubleBrace",2,4,"二重かっこ"]
[28,28,"Plaque",2,4,"プラーク"]
[29,29,"LeftBracket",2,4,"左角かっこ"]
[30,30,"RightBracket",2,4,"右角かっこ"]
[31,31,"LeftBrace",2,4,"左かっこ"]
[32,32,"RightBrace",2,4,"右中かっこ"]
[33,33,"RightArrow",2,4,"右を指すブロック矢印"]
[34,34,"LeftArrow",2,4,"左を指すブロック矢印"]
[35,35,"UpArrow",1,2,"上を指すブロック矢印"]
[36,36,"DownArrow",1,2,"下向きのブロック矢印"]
[37,37,"LeftRightArrow",1,2,"左右の両方を指す矢印付きのブロック矢印"]
[38,38,"UpDownArrow",2,4,"上下を指すブロック矢印"]
[39,39,"QuadArrow",2,4,"上、下、左、右を指すブロック矢印"]
[40,40,"LeftRightUpArrow",2,4,"左、右、上を指す矢印を含むブロック矢印"]
[41,41,"BentArrow",2,4,"90°の曲線に続くブロック矢印。"]
[42,42,"UTurnArrow",2,4,"U図形を形成するブロック矢印"]
[43,43,"LeftUpArrow",2,4,"左と上を指す矢印が付いたブロック矢印"]
[44,44,"BentUpArrow",2,4,"90°の鋭角線に続くブロック矢印。既定では上向きです。"]
[45,45,"CurvedRightArrow",2,4,"右にカーブするブロック矢印"]
[46,46,"CurvedLeftArrow",2,4,"左にカーブするブロック矢印"]
[47,47,"CurvedUpArrow",2,4,"上にカーブするブロック矢印"]
[48,48,"CurvedDownArrow",2,4,"下にカーブするブロック矢印"]
[49,49,"StripedRightArrow",2,4,"末尾にストライプが付いた右を指すブロック矢印"]
[50,50,"NotchedRightArrow",2,4,"右を指すノッチ付きブロック矢印"]
[51,51,"Pentagon",2,4,"ペンタゴン"]
[52,52,"Chevron",2,4,"Chevron"]
[53,53,"RightArrowCallout",2,4,"右を指す矢印を使用した吹き出し"]
[54,54,"LeftArrowCallout",2,4,"左を指す矢印を使用した吹き出し"]
[55,55,"UpArrowCallout",2,4,"上を指す矢印を使用した吹き出し"]
[56,56,"DownArrowCallout",2,4,"下向きの矢印を使用した吹き出し"]
[57,57,"LeftRightArrowCallout",2,4,"左と右の両方を指す矢印付きの吹き出し"]
[58,58,"UpDownArrowCallout",2,4,"上下を指す矢印を使用した吹き出し"]
[59,59,"QuadArrowCallout",2,4,"上、下、左、右を指す矢印を使用した吹き出し"]
[60,60,"CircularArrow",2,4,"曲線180度の角度に続くブロック矢印"]
[61,61,"FlowchartProcess",2,4,"プロセスフローチャート記号"]
[62,62,"FlowchartAlternateProcess",2,4,"代替プロセスフローチャート記号"]
[63,63,"FlowchartDecision",2,4,"デシジョンフローチャート記号"]
[64,64,"FlowchartData",2,4,"データフローチャート記号"]
[65,65,"FlowchartPredefinedProcess",2,4,"定義済みのプロセスフローチャート記号"]
[66,66,"FlowchartInternalStorage",2,4,"内部ストレージフローチャート記号"]
[67,67,"FlowchartDocument",2,4,"ドキュメントフローチャート記号"]
[68,68,"FlowchartMultidocument",2,4,"複数文書フローチャート記号"]
[69,69,"FlowchartTerminator",2,4,"ターミネータフローチャート記号"]
[70,70,"FlowchartPreparation",2,4,"準備フローチャート記号"]
[71,71,"FlowchartManualInput",2,4,"手動入力フローチャート記号"]
[72,72,"FlowchartManualOperation",2,4,"手動操作フローチャート記号"]
[73,73,"FlowchartConnector",4,4,"コネクタフローチャート記号"]
[74,74,"FlowchartOffpageConnector",4,4,"オフページコネクタフローチャート記号"]
[75,75,"FlowchartCard",4,4,"カードフローチャート記号"]
[76,76,"FlowchartPunchedTape",4,4,"パンチテープフローチャート記号"]
[77,77,"FlowchartSummingJunction",4,4,"加算ジャンクションフローチャート記号"]
[78,78,"FlowchartOr",4,4,"Orフローチャート記号"]
[79,79,"FlowchartCollate",4,4,"フローチャート記号を照合する"]
[80,80,"FlowchartSort",4,4,"並べ替えフローチャート記号"]
[81,81,"FlowchartExtract",4,4,"フローチャート記号の抽出"]
[82,82,"FlowchartMerge",4,4,"差し込みフローチャート記号"]
[83,83,"FlowchartStoredData",4,4,"格納されたデータフローチャート記号"]
[84,84,"FlowchartDelay",4,4,"遅延フローチャート記号"]
[85,85,"FlowchartSequentialAccessStorage",4,4,"順次アクセス・ストレージフローチャート記号"]
[86,86,"FlowchartMagneticDisk",4,4,"磁気ディスクフローチャート記号"]
[87,87,"FlowchartDirectAccessStorage",4,4,"直接アクセスストレージフローチャート記号"]
[88,88,"FlowchartDisplay",4,4,"フローチャート記号を表示する"]
[89,89,"Explosion1",4,4,"Explosion"]
[90,90,"Explosion2",4,4,"Explosion"]
[91,91,"4pointStar",4,4,"4点星"]
[92,92,"5pointStar",4,4,"5点星"]
[93,93,"8pointStar",4,4,"8点星"]
[94,94,"16pointStar",4,4,"16ポイントの星"]
[95,95,"24pointStar",4,4,"24ポイントの星"]
[96,96,"32pointStar",4,4,"32ポイントの星"]
[97,97,"UpRibbon",2,4,"リボンの端の上に中央の領域があるリボンバナー"]
[98,98,"DownRibbon",2,4,"リボンの端の下に中央の領域があるリボンバナー"]
[99,99,"CurvedUpRibbon",2,4,"上にカーブするリボンバナー"]
[100,100,"CurvedDownRibbon",2,4,"下にカーブするリボンバナー"]
[101,101,"VerticalScroll",2,4,"垂直スクロール"]
[102,102,"HorizontalScroll",4,4,"水平スクロール"]
[103,103,"Wave",4,4,"小波"]
[104,104,"DoubleWave",4,4,"ダブルウェーブ"]
[105,105,"RectangularCallout",4,4,"長方形吹き出し"]
[106,106,"RoundedRectangularCallout",4,4,"四角形の丸みを帯びた吹き出し"]
[107,107,"OvalCallout",4,4,"楕円型吹き出し"]
[108,108,"CloudCallout",4,4,"クラウド吹き出し"]
[109,109,"LineCallout1",2,4,"罫線と水平吹き出し線を使用した吹き出し"]
[110,110,"LineCallout2",2,4,"斜めの直線を使用した吹き出し"]
[111,111,"LineCallout3",2,4,"斜線を使用した吹き出し"]
[112,112,"LineCallout4",2,4,"U図形を形成する吹き出し線セグメントを含む吹き出し"]
[113,113,"LineCallout1AccentBar",2,4,"水平アクセントバーを使用した吹き出し"]
[114,114,"LineCallout2AccentBar",2,4,"斜め吹き出し線とアクセントバーを使用した吹き出し"]
[115,115,"LineCallout3AccentBar",2,4,"角度付き吹き出し線とアクセントバーを使用した吹き出し"]
[116,116,"LineCallout4AccentBar",2,4,"U図形を形成するアクセントバーと吹き出し線セグメントを含む吹き出し"]
[117,117,"LineCallout1NoBorder",2,4,"水平線を使用した吹き出し"]
[118,118,"LineCallout2NoBorder",2,4,"罫線のない吹き出し線と対角線付き吹き出し線"]
[119,119,"LineCallout3NoBorder",2,4,"罫線と角度付き吹き出し線のない吹き出し"]
[120,120,"LineCallout4NoBorder",2,4,"U図形を形成する罫線セグメントと吹き出し線セグメントのない吹き出し"]
[121,121,"LineCallout1BorderandAccentBar",2,4,"罫線と水平方向のアクセントバーを使用した吹き出し"]
[122,122,"LineCallout2BorderandAccentBar",2,4,"罫線、対角線、アクセントバーを使用した吹き出し"]
[123,123,"LineCallout3BorderandAccentBar",2,4,"罫線、角度付き吹き出し線、アクセントバーを含む吹き出し"]
[124,124,"LineCallout4BorderandAccentBar",2,4,"U図形を形成する罫線、アクセントバー、吹き出し線セグメントを含む吹き出し"]
[125,125,"ActionButtonCustom",2,4,"既定の画像またはテキストのないボタン。マウスクリックおよびマウスオーバー動作をサポートします。"]
[126,126,"ActionButtonHome",2,2,"[ ホーム]ボタン。マウスクリックおよびマウスオーバー動作をサポートします。"]
[127,127,"ActionButtonHelp",2,2,"[ ヘルプ]ボタン。マウスクリックおよびマウスオーバー動作をサポートします。"]
[128,128,"ActionButtonInformation",2,2,"[ 情報]ボタン。マウスクリックおよびマウスオーバー動作をサポートします。"]
[129,129,"ActionButtonBackorPrevious",1,1,"[ 戻る]または[ 前へ]ボタン。マウスクリックおよびマウスオーバー動作をサポートします。"]
[130,130,"ActionButtonForwardorNext",1,1,"[ 進む]または[ 次へ]ボタン。マウスクリックおよびマウスオーバー動作をサポートします。"]
[131,131,"ActionButtonBeginning",1,1,"[ 上旬]ボタン。マウスクリックおよびマウスオーバー動作をサポートします。"]
[132,132,"ActionButtonEnd",1,1,"[ 終了]ボタン。マウスクリックおよびマウスオーバー動作をサポートします。"]
[133,133,"ActionButtonReturn",2,2,"[ 戻る]ボタン。マウスクリックおよびマウスオーバー動作をサポートします。"]
[134,134,"ActionButtonDocument",2,4,"[ 文書]ボタン。マウスクリックおよびマウスオーバー動作をサポートします。"]
[135,135,"ActionButtonSound",2,4,"[ サウンド]ボタン。マウスクリックおよびマウスオーバー動作をサポートします。"]
[136,136,"ActionButtonMovie",2,4,"[ ビデオ]ボタン。マウスクリックおよびマウスオーバー動作をサポートします。"]
[137,137,"Balloon",2,4,"風船"]
[138,138,"NotPrimitive",2,4,"非サポート"]
[139,139,"FlowchartOfflineStorage",4,4,"オフラインストレージフローチャート記号"]
[140,140,"LeftRightRibbon",2,8,"両端に矢印が付いたリボン"]
[141,141,"DiagonalStripe",2,4,"2つの三角形の図形が削除された四角形。対角線"]
[142,142,"Pie",4,4,"一部が欠落している円('pie')"]
[143,143,"NonIsoscelesTrapezoid",4,4,"非対称非平行辺を持つ台形"]
[144,144,"Decagon",4,4,"デカゴン"]
[145,145,"Heptagon",4,4,"Heptagon"]
[146,146,"Dodecagon",4,4,"12角形。"]
[147,147,"6pointStar",4,4,"6点星"]
[148,148,"7pointStar",4,4,"7点星"]
[149,149,"10pointStar",4,4,"10ポイントの星"]
[150,150,"12pointStar",4,4,"12ポイントの星"]
[151,151,"Round1Rectangle",4,4,"角を丸めた四角形"]
[152,152,"Round2SameRectangle",4,4,"辺を共有する角が2角の四角形"]
[153,153,"SnipRoundRectangle",4,4,"1つの角が切り取られ、角が丸い四角形"]
[154,154,"Snip1Rectangle",4,4,"1つの角が切り取られた四角形"]
[155,155,"Snip2SameRectangle",4,4,"辺を共有する2つの角が切り取られた四角形"]
[156,156,"Round2DiagRectangle",4,4,"2つの角を丸めた四角形(対角線付き)"]
[157,157,"Snip2DiagRectangle",4,4,"斜め対向する2つの角を持つ四角形"]
[158,158,"Frame",4,4,"長方形の額縁"]
[159,159,"HalfFrame",4,4,"長方形の額縁の半分"]
[160,160,"Tear",4,4,"水滴"]
[161,161,"Chord",4,4,"円の内側を通って境界上の2つのポイントを結ぶ線を持つ円。和音を持つ円"]
[162,162,"Corner",4,4,"四角形の欠落部分がある四角形。"]
[163,163,"MathPlus",2,2,"加算記号 +"]
[164,164,"MathMinus",2,2,"減算記号 -"]
[165,165,"MathMultiply",2,2,"乗算記号 x"]
[166,166,"MathDivide",2,2,"除算記号 ÷"]
[167,167,"MathEqual",2,2,"等価記号 ="]
[168,168,"MathNotEqual",2,2,"非等価記号 ≠"]
[169,169,"CornerTabs",2,4,"四角形の形に沿って配置された4つの直角三角形。4つの切り取られた角部分。"]
[170,170,"SquareTabs",2,4,"四角形の図形を定義する4つの小さな四角形"]
[171,171,"PlaqueTabs",2,4,"四角形の図形を定義する4つの四分円"]
[172,172,"Gear6",4,4,"6本の歯を持つギア"]
[173,173,"Gear9",4,4,"歯が9個ある歯車。"]
[174,174,"Funnel",4,4,"漏斗"]
[175,175,"PieWedge",4,4,"円形図形の4分の1"]
[176,176,"LeftCircularArrow",4,4,"反時計回りを指す円形の矢印"]
[177,177,"LeftRightCircularArrow",4,4,"時計回りと反時計回りを指す円形の矢印。両端にポイントがある曲線矢印"]
[178,178,"SwooshArrow",4,4,"曲線矢印"]
[179,179,"Cloud",4,4,"クラウドシェイプ"]
[180,180,"ChartX",2,4,"対角線に沿って4つの部分に分割された正方形"]
[181,181,"ChartStar",2,4,"垂直線と対角線に沿って6つの部分に分割された正方形"]
[182,182,"ChartPlus",2,4,"四角形を垂直方向と水平方向に4四分の4に分割"]
[183,183,"LineInverse",2,4,"線の逆数"]
[184,184,"ConnectorStraight",2,4]
[185,185,"ConnectorStraight",2,4]
[186,186,"ConnectorStraight",2,4]
[187,187,"ConnectorStraight",2,4]
[188,188,"ConnectorElbow",4,2]
[189,189,"ConnectorElbow",4,2]